Cogmind - Beta 15 @@@ ROGUE MODE // 2025.07.07 @ 13:01:06 Player: Vaya Result: Destroyed by H-55 Commando with Gauss Rifle Performance ------------- Evolutions (2) 1000 Regions Visited (3) 600 Robots Destroyed (29) 145 Value Destroyed (1004) 1004 Prototype IDs (1) 20 Alien Tech Used (0) 0 Bonus (0) 0 TOTAL SCORE: 2769 Bonus ------- None Cogmind --------- Core Integrity 0/550 Matter 299/300 Energy 100/100 System Corruption 0% Temperature Cool (0) Movement Core (700) Ox13 Location -8/Materials Parts ------- > --- POWER (2) -------- (None) > --- PROPULSION (2) --- (None) > --- UTILITY (4) ------ High-capacity Storage Unit Advanced Terrain Scan Processor System Shield > --- WEAPON (3) ------- (None) > --- INVENTORY (20) --- Light Nuclear Core Small Storage Unit Cargo Storage Unit Compact Matter Pod (72) Structural Scanner Improved Terrain Scanner Weapon Cycler Datajack Mining Claw Peak State ------------ > --- POWER ------------ Light Deuterium Engine Light Nuclear Core > --- PROPULSION ------- Light Treads VSS Leg > --- UTILITY ---------- High-capacity Storage Unit Advanced Terrain Scan Processor Advanced Terrain Scan Processor Seismic Detector > --- WEAPON ----------- Improved EM Pulse Cannon Improved EM Pulse Cannon Heavy Particle Cannon > --- INVENTORY -------- Light Ion Engine Improved Ion Engine Wheel Heat Sink Small Storage Unit Cargo Storage Unit Compact Matter Pod Structural Scanner Improved Terrain Scanner Weapon Cycler System Shield Datajack Mining Laser Mining Claw [Rating: 33] Favorites ----------- Power Ion Engine Engine Ion Engine Power Core Light Nuclear Core Propulsion Aluminum Leg Treads Light Treads Leg Aluminum Leg Wheel Wheel Flight Unit Flight Unit Utility Advanced Terrain Scan Processor Device Seismic Detector Storage High-capacity Storage Unit Processor Advanced Terrain Scan Processor Hackware System Shield Weapon Small Laser Energy Gun Small Laser Energy Cannon Heavy Particle Cannon Ballistic Gun Light Assault Rifle Launcher Advanced EMP Blaster Special Weapon Mining Laser Slashing Weapon Mining Claw Build | -11 -10 -9 -8 ------- Run | Yrd Mat Mat Mat Slots Evolved 4 | . . 2 2 Power 1 | . . . 1 Propulsion . | . . . . Utility 2 | . . 2 . Weapon 1 | . . . 1 Parts Attached 40 | 8 1 7 24 Power 9 | 1 . 1 7 Engine 6 | 1 . 1 4 Core 3 | . . . 3 Reactor . | . . . . Propulsion 11 | 2 . 2 7 Treads 2 | . . . 2 Leg 5 | 2 . . 3 Wheel 2 | . . 2 . Hover . | . . . . Flight 2 | . . . 2 Utility 9 | 3 . 2 4 Device 3 | 2 . . 1 Storage 2 | 1 . 1 . Processor 3 | . . 1 2 Hackware 1 | . . . 1 Protection . | . . . . Artifact . | . . . . Weapon 11 | 2 1 2 6 Energy Gun 2 | 1 . 1 . Energy Cannon 3 | . . . 3 Ballistic Gun 3 | 1 . 1 1 Ballistic Cannon . | . . . . Launcher 1 | . . . 1 Special Weapon 1 | . 1 . . Impact Weapon . | . . . . Slashing Weapon 1 | . . . 1 Piercing Weapon . | . . . . Special Melee Weapon . | . . . . Unidentified Prototypes 1 | . . . 1 Parts Lost 30 | . . 2 28 Power 9 | . . . 9 Propulsion 9 | . . 2 7 Utility 3 | . . . 3 Weapon 9 | . . . 9 Highest Loss Streak 10 | . . 2 10 To Critical Strikes . | . . . . Average Backups 11 | 4 8 7 13 Power 1 | 1 1 1 2 Propulsion 1 | 1 1 . 1 Utility 4 | 1 2 1 6 Weapon 2 | . 2 3 2 Tool/Special . | . . . . Unused Backups 11 | . 3 . 8 Power 1 | . 1 . . Propulsion 2 | . 2 . . Utility 7 | . . . 7 Weapon . | . . . . Tool/Special 1 | . . . 1 Average Slot Usage (%) 88 | . 100 96 84 Engine 12 | . 14 11 12 Treads 5 | . . . 8 Leg 6 | . 28 4 1 Wheel 4 | . . 14 4 Device 13 | . 14 21 12 Storage 10 | . 14 11 9 Processor 8 | . . 11 10 Hackware 1 | . . . 1 Energy Gun 8 | . 14 10 6 Energy Cannon 5 | . . . 7 Ballistic Gun 7 | . 13 8 5 Peak Build Rating 33 | 10 10 15 33 Average Rating 16 | 6 9 13 20 On Entrance 8 | . 10 10 15 Naked Turns . | . . . . Heaviest Build 72 | 13 13 53 72 Greatest Support 40 | 20 20 20 40 Greatest Overweight (x) 21 | . . 4 21 Average Overweight (x) 1 | . . . 2 Largest Inventory Capacity 20 | 8 8 20 20 Average Capacity 15 | 7 8 11 20 Most Carried 20 | 8 8 10 20 Average Carried 11 | 4 7 7 14 Final Capacity 20 | 8 8 20 20 Final Carried 10 | 8 8 10 10 Class Distribution -------------------- 48% | Mutant 21% | Scavenger-Skirmisher 17% | Gunner 9% | Scavenger-Mutant 3% | Scavenger-Gunner Dominant Class ---------------- Mutant | -10/Materials Scavenger-Mutant | -9/Materials Scavenger-Skirmisher | -8/Materials Resources | -11 -10 -9 -8 ----------- Run | Yrd Mat Mat Mat Matter Collected 906 | 299 44 33 530 Remotely . | . . . . Salvage Created 1156 | 127 216 52 761 Parts 66 | 14 15 6 31 Haulers Intercepted . | . . . . Recyclers Shooed 1 | . 1 . . Parts Field Recycled . | . . . . Retrieved Matter . | . . . . Parts Self-Destructed . | . . . . Prevented . | . . . . Kills | -11 -10 -9 -8 ------- Run | Yrd Mat Mat Mat Combat Hostiles Destroyed 20 | . 5 1 14 Melee 1 | . . . 1 Guns 6 | . 5 1 . Cannons 9 | . . . 9 AOE 3 | . . . 3 Classes Destroyed 6 | 2 2 1 1 Builder 3 | . 1 . 2 Tunneler 4 | 4 . . . Recycler 1 | 1 . . . Watcher 1 | . . . 1 Grunt 16 | . 5 . 11 Sentry 4 | . . 1 3 Best Kill Streak 4 | 1 2 1 4 Combat Bots Only 2 | . 2 1 2 Max Kills in Single Turn 4 | 1 1 1 4 Gunslinging . | . . . . Exploded 2 | . . . 2 Melee 1 | . . . 1 Uniques/NPCs Destroyed . | . . . . Combat | -11 -10 -9 -8 -------- Run | Yrd Mat Mat Mat Hostile Shots Fired 281 | . 39 22 220 Missed 70 | . 9 8 53 Hits 211 | . 30 14 167 Projectile 211 | . 30 14 167 Critical Strikes 11 | . . 3 8 Damage Taken 3316 | . 385 193 2738 Core 743 | . 127 58 558 Absorbed by Shields . | . . . . Core Remaining (%) 78 | 100 49 85 . Volleys Fired 107 | 19 27 17 44 Largest 3 | 2 2 2 3 Hottest 213 | 60 140 140 213 Shots Fired 219 | 38 54 21 106 Gun 162 | 38 51 18 55 Cannon 44 | . . . 44 Launcher 4 | . . . 4 Special 9 | . 3 3 3 Kinetic 86 | 19 24 15 28 Thermal 118 | 19 30 6 63 Explosive . | . . . . Electromagnetic 15 | . . . 15 Robot Hit Streak 10 | 9 6 6 10 Robot Miss Streak 4 | 3 2 2 4 Penetration Max . | . . . . Secondary Targets 1 | . 1 . . Max Gunslinging Chain 1 | . 1 . . Shots Hit Robots 119 | 25 30 12 52 Core Hits 53 | 8 13 4 28 Critical Kills . | . . . . Critical Parts Destroyed 1 | . 1 . . Critical Strikes 1 | . 1 . . Destroy 1 | . 1 . . Melee Attacks . | . . . . Impact . | . . . . Slashing . | . . . . Piercing . | . . . . Sneak Attacks . | . . . . Combat Hostiles . | . . . . Follow-up Attacks . | . . . . Damage Inflicted 2536 | 246 301 106 1883 Guns 1017 | 246 301 106 364 Cannons 642 | . . . 642 Explosions 856 | . . . 856 Melee . | . . . . Ramming 21 | . . . 21 Kinetic 466 | 80 119 95 172 Thermal 1601 | 166 182 11 1242 Explosive . | . . . . Electromagnetic 448 | . . . 448 Impact . | . . . . Slashing . | . . . . Piercing . | . . . . Highest Corruption 2 | . 2 . . Average Corruption 2 | . 2 . . Corruption Purged . | . . . . Corruption Blocked . | . . . . Overload Shots . | . . . . Overflow Damage 313 | . . . 313 Projectiles . | . . . . Explosions 313 | . . . 313 Melee . | . . . . Knockbacks . | . . . . Impact . | . . . . Kinetic . | . . . . Secondary . | . . . . Self-Inflicted Damage 142 | . . . 142 Shots 4 | . . . 4 Rammed 7 | . . . 7 Targets Rammed 8 | . . . 8 Kicked 1 | . . . 1 Crushed . | . . . . Highest Temperature 478 | 40 154 36 478 Average Temperature 132 | 16 51 13 191 Received Heat Transfer 1794 | . 216 120 1458 Effects 11 | . . . 11 Shutdowns 2 | . . . 2 Energy Bleed 2 | . . . 2 Interference 5 | . . . 5 Matter Decay 2 | . . . 2 Siege Activations . | . . . . Martial Activations . | . . . . Shielding Activations . | . . . . Robots Disrupted . | . . . . Combat Hostiles . | . . . . Robots Corrupted 1 | . . . 1 Combat Hostiles 1 | . . . 1 Parts Fried 6 | . . . 6 Impact Corruptions . | . . . . Robots Melted . | . . . . Combat Hostiles . | . . . . Parts Melted 1 | . . . 1 Heat Transferred 2267 | 375 425 25 1442 Parts Sabotaged . | . . . . Parts Stolen . | . . . . Parts Stripped . | . . . . Power Chain Reactions 1 | . . . 1 Alert | -11 -10 -9 -8 ------- Run | Yrd Mat Mat Mat Maximum Alert Level . | . . . . Low Security (%) 100 | 100 100 100 100 Level 1 . | . . . . Level 2 . | . . . . Level 3 . | . . . . Level 4 . | . . . . Level 5 . | . . . . High Security . | . . . . Max Security . | . . . . Peak Influence 131 | 5 70 37 131 Initial 18 | . 3 18 . Average 25 | . 20 15 32 Influence Increases 729 | 25 143 78 483 Destroy 0b10 Robot/C 400 | . 100 20 280 Destroy 0b10 Robot/NC 45 | 25 5 . 15 Destroy Leader 92 | . 30 10 52 Successful Hack 5 | . 5 . . Disable Machine 75 | . . . 75 Destroy Structure 52 | . 3 3 46 Lose Combat Pursuer 60 | . . 45 15 Influence Decreases 695 | 20 103 123 449 Entered New Map 29 | . 2 27 . Time Decay 488 | 20 101 88 279 Lost Part 178 | . . 8 170 Squads Dispatched 6 | . 2 2 2 Investigation 2 | . 1 1 . Extermination . | . . . . Reinforcement 4 | . 1 1 2 Assault . | . . . . Garrison . | . . . . Intercept . | . . . . Searches Triggered . | . . . . Construction Impeded 1 | . . . 1 Haulers Reinforced . | . . . . Active Scanning Responses . | . . . . Cargo Convoy Interrupts . | . . . . Stealth | -11 -10 -9 -8 --------- Run | Yrd Mat Mat Mat Distress Signals 1 | . . . 1 Communications Jammed . | . . . . Distress Signals . | . . . . Times Spotted 33 | . 7 7 19 Peak Tracking Total 4 | . 3 3 4 Tactical Retreats 2 | . . 1 1 Traps | -11 -10 -9 -8 ------- Run | Yrd Mat Mat Mat Traps Triggered 3 | . 2 1 . Indirectly . | . . . . Trap Hack Attempts . | . . . . Triggered . | . . . . Disarmed . | . . . . Reprogrammed . | . . . . Reused . | . . . . Traps Extracted . | . . . . Installed . | . . . . Triggered . | . . . . Machines | -11 -10 -9 -8 ---------- Run | Yrd Mat Mat Mat Machines Disabled 5 | . . . 5 Max in Single Turn 2 | . . . 2 Machines Repaired . | . . . . Machines Dismantled . | . . . . Machines Sabotaged . | . . . . Overloaded Fab Kills . | . . . . Hacking | -11 -10 -9 -8 --------- Run | Yrd Mat Mat Mat Machines Accessed 2 | . 2 . . Terminals 1 | . 1 . . Fabricators . | . . . . Repair Stations . | . . . . Recycling Units 1 | . 1 . . Scanalyzers . | . . . . Garrison Access . | . . . . Total Hacks 2 | . 2 . . Successful 2 | . 2 . . Failed . | . . . . Catastrophic . | . . . . Database Lockouts . | . . . . Manual . | . . . . Terminals 1 | . 1 . . Fabricators . | . . . . Repair Stations . | . . . . Recycling Units 1 | . 1 . . Scanalyzers . | . . . . Garrison Access . | . . . . Terminal Hacks 1 | . 1 . . Zone Layout 1 | . 1 . . Fabricator Hacks . | . . . . Repair Station Hacks . | . . . . Recycling Unit Hacks 1 | . 1 . . Report Inventory 1 | . 1 . . Scanalyzer . | . . . . Garrison Access Hacks . | . . . . Unauthorized Hacks . | . . . . Terminals . | . . . . Fabricators . | . . . . Repair Stations . | . . . . Recycling Units . | . . . . Scanalyzers . | . . . . Garrison Access . | . . . . Data Cores Recovered . | . . . . Used . | . . . . Hacking Detections . | . . . . Full Trace Events . | . . . . Feedback Events . | . . . . Feedback Blocked . | . . . . Robot Schematics Acquired . | . . . . Robots Built . | . . . . Authchips . | . . . . Time . | . . . . Total Robot Build Rating . | . . . . Part Schematics Acquired . | . . . . Parts Built . | . . . . Authchips . | . . . . Time . | . . . . Total Part Build Rating . | . . . . Parts Repaired . | . . . . Time . | . . . . Parts Recycled . | . . . . Recycled Matter . | . . . . Retrieved Matter . | . . . . Retrieved Components . | . . . . Parts Scanalyzed . | . . . . Part Schematics Acquired . | . . . . Parts Damaged . | . . . . Bothacking | -11 -10 -9 -8 ------------ Run | Yrd Mat Mat Mat Used RIF Installer . | . . . . Robots Hacked . | . . . . Non-combat . | . . . . Combat . | . . . . Robot Hacks Applied . | . . . . Relay Couplers Released . | . . . . Fabnet Peak Effective % . | . . . . Robots Rewired . | . . . . Allies Hacked . | . . . . Hacks Repelled . | . . . . Allies | -11 -10 -9 -8 -------- Run | Yrd Mat Mat Mat Total Allies . | . . . . Largest Group . | . . . . Highest-Rated Group . | . . . . Highest-Rated Ally . | . . . . Total Orders . | . . . . Ally Attacks . | . . . . Total Damage . | . . . . Kills . | . . . . Allies Corrupted . | . . . . Allies Melted . | . . . . Intel | -11 -10 -9 -8 ------- Run | Yrd Mat Mat Mat Active Infowar (turns) 1649 | 161 315 208 965 Terrain 1130 | 86 315 208 521 Seismic 1247 | 75 . 207 965 Robot Analysis Total . | . . . . Derelict Logs Recovered . | . . . . Drone Launches . | . . . . Drone Recoveries . | . . . . Exploration | -11 -10 -9 -8 ------------- Run | Yrd Mat Mat Mat Turns Passed 1959 | 215 315 208 1221 Spaces Moved 854 | 118 160 138 438 Core 26 | 6 . 7 13 Treads 186 | . . . 186 Legs 323 | 112 160 18 33 Wheels 315 | . . 113 202 Hover . | . . . . Flight 4 | . . . 4 Fastest Speed 50 | 50 120 80 110 Average Speed 167 | 116 120 103 218 Slowest Speed 1235 | 120 120 250 1235 Overloaded Moves . | . . . . Propulsion Burnouts . | . . . . Robots Hopped . | . . . . Potential Cave-ins . | . . . . Cave-ins Triggered . | . . . . Exploration Rate (%) 24 | 7 29 22 39 Regions Visited 3 Branch Regions . Pre-discovered Areas . | . . . . Known Exits Taken . | . . . . Unknown Exits Taken 3 | 1 1 1 . Scrap Searched . | . . . . Spaces Dug 10 | . 3 3 4 Terrain Destroyed 49 | . 3 3 43 Melee . | . . . . Projectile 24 | . 3 3 18 AOE 25 | . . . 25 Terrain Rammed . | . . . . Walls Destroyed . | . . . . Machines Disabled . | . . . . Actions | -11 -10 -9 -8 --------- Run | Yrd Mat Mat Mat Total 1157 | 161 228 175 593 Wait 72 | 2 34 . 36 Move 851 | 117 159 137 438 Hop . | . . . . Pick Up 53 | 15 3 8 27 Fast Attach . | . . . . Attach 33 | 7 . 4 22 Detach . | . . . . Swap 24 | 1 2 7 14 Drop 9 | . 3 2 4 Fire 107 | 19 27 17 44 Melee . | . . . . Ram . | . . . . Kick 1 | . . . 1 Crush 7 | . . . 7 Escape Stasis . | . . . . Rewire . | . . . . Trap . | . . . . Miscellaneous . | . . . . Route ------- -11/Scrapyard -10/Materials -9/Materials -8/Materials History --------- Turn | Location | Event 6 | -11/Scrapyard | Discovered new exit (range 15) 216 | -11/Scrapyard | Entered Materials 312 | -10/Materials | Build established: Mutant 456 | -10/Materials | Core integrity fell below 50% 513 | -10/Materials | Discovered new exit (range 16) 531 | -10/Materials | Entered another Materials area 531 | -9/Materials | Evolved 2 slots: Utility x2 730 | -9/Materials | Discovered new exit (range 4) 739 | -9/Materials | Entered another Materials area 739 | -8/Materials | Evolved 2 slots: Power x1, Weapon x1 1077 | -8/Materials | Lost 3 parts (1p1n1w) 1560 | -8/Materials | Build established: Gunner 1668 | -8/Materials | Lost 4 parts (1p1n2w) 1747 | -8/Materials | Lost 7 parts (2p2n1u2w) 1777 | -8/Materials | Core integrity fell below 50% 1887 | -8/Materials | Lost 10 parts (4p3n1u2w) 1946 | -8/Materials | Core integrity fell below 20% 1960 | -8/Materials | Destroyed by H-55 Commando with Gauss Rifle Last Messages --------------- Aluminum Leg fried. U-05 Engineer lays Concrete. K-01 Serf collects debris. U-05 Engineer lays Concrete. K-01 Serf collects debris. U-05 Engineer lays Concrete. K-01 Serf collects debris. U-05 Engineer lays Concrete. Acquired 21 matter. U-05 Engineer lays Concrete. U-05 Engineer builds a Door. U-05 Engineer lays Concrete. Adv. EMP Blaster destroyed. U-05 Engineer lays Concrete. Slug penetrates Door. U-05 Engineer lays Concrete. Penetrated by Slug. U-05 Engineer lays Concrete. Acquired Corrupted Lgt. Nuclear Core. U-05 Engineer lays Concrete. Map ----- +----------------------------------------------------+ | | | | | | | | | | | | | | | | | | | | | | | | | | | ??????????????????????????????????? | | ????????????########??????????????? | | ????????????# """ #??????????????? | | ????????????# "R" #??????????#???? | | ????????????# "* #?????????????#? | | ??########### = #??##????####?#? | | ??# ! #^ # %! #??# ###? | | ??# # # a [= #??# """ + #? | | ??#= """ + ##/######## "" # #? | | ??# """ # ! # # ## | | ??# """ #! + # #? | | ??# #%= " # ! " " # #? | | ??#####/"#@= T # "R" # #? | | ??????# ## " # """ # ## | | #######+## u # #%=# | | # # ##########=## | | #"""" # #? | | #"""" #o #? | | #"""% # T ## | | #"""" ;= ###+##### ## | | ?"""%% #% #? ???# #? | | ?"""% # #! ???# ## | | ?""""% # # " ??# | | ? # # "" ??# ## | | ?######### """ #? "" #?# #? | | ?????????# """ #?""" #?# #? | | ?????????# """ # "? #?# #? | | ?????????# # "?? #?# #? | | ?????????# # ????#?# #? | | ????????? """ #???????# #? | | ????????# """ #???????# ## | | ????????# """ #???????? ?? | | ????????##+## ????????? ?? | | ????????????# ?? ????????? ? | | ????????????# ""????????????? ?? | | ????????????# "?????????????? ?? | | ????????????? ??????????????? ?? | +----------------------------------------------------+ Best States ------------- Heat Dissipation 41 Energy Generation 23 Energy Capacity 440 Matter Stores 300 Matter Capacity 300 Sight Range 16 Terrain Scan Range 16 Terrain Scan Density 410 Evasion (%) 55 Recoil Reduction 2 Defensive Hacking 10 Item Schematics ----------------- None Robot Schematics ------------------ None Fabricated ------------ Nothing Repaired ---------- Nothing Alien Tech Used ----------------- None Achievements -------------- Omniscient Cartographer Challenges ------------ None Game ------ Seed CobblerCompactInitializer Manual? 0 Play Time 00:37:27 Cumulative 3.1 hours Start 2025.07.07 @ 12:20:13 End 2025.07.07 @ 13:01:06 Sessions 1 Manual Loads 0 Difficulty Rogue Special Mode None Game No. 4 Rogue 4 Adventurer 0 Explorer 0 Win Type - Total 0 Types 0/0/0/0/0/0/0/0/0/0 Lore% 0 Gallery% 8 Achievement% 6 Wizard Run 0 Options --------- Layout 1 ASCII 0 Keyboard 0 Movement Mouse Keybinds 0 Fullscreen 1 Font 24/Smallcaps Map View 50x35 Zoom Use 0% Tactical HUD 0 Map Filters NONE Filters NONE Steam 1 RUN: c7cdf1e6-f1fc-4f0d-8426-db710fd7344a